[Event "23rd Hogeschool Zeeland Open 2019"]
[Site "Vlissingen"]
[Date "2019.08.04"]
[Round "1.1"]
[White "Van t Hoff, Kees"]
[Black "Kamsky, Gata"]
[Result "0-1"]
[ECO "A85"]
[WhiteElo "1773"]
[BlackElo "2673"]
[Annotator "RC"]
[PlyCount "42"]
[EventDate "2019.08.03"]
[EventType "swiss"]
[EventCountry "NED"]
[SourceTitle "playchess.com"]
[Source "ChessBase"]
[SourceQuality "1"]
[TimeControl "40/5400+30:1800+30"]

1. d4 {[%emt 0:00:00]} f5 {[%emt 0:00:58]} 2. c4 {[%emt 0:00:08]} Nf6 {[%emt 0:00:08]} 3. Nc3 {[%emt 0:00:40]} d6 {[%emt 0:00:09]} 4. Nf3 {[%emt 0:01:48]} g6 {[%emt 0:00:21]} 5. h3 {[%emt 0:00:44]} Bg7 {[%emt 0:00:14]} 6. Bf4 {[%emt 0:00:52]} Ne4 {[%emt 0:01:31]} 7. e3 {[%emt 0:03:40]} Nxc3 {[%emt 0:00:11]} 8. bxc3 {[%emt 0:00:18]} c5 {[%emt 0:00:14]} 9. Rc1 {[%emt 0:02:04]} Nc6 {[%emt 0:00:19]} 10. Be2 {[%emt 0:01:08]} O-O {[%emt 0:01:06]} 11. O-O {[%emt 0:04:40]} e5 {[%emt 0:01:16]} 12. Bh2 {[%emt 0:07:00]} Qe7 {[%emt 0:00:51]} 13. d5 {[%emt 0:01:15]} Nd8 {[%emt 0:01:40]} 14. Nd2 {[%emt 0:01:04]} Nf7 {[%emt 0:04:11]} 15. e4 {[%emt 0:01:25]} Ng5 {[%emt 0:03:56]} 16. f4 {[%emt 0:02:00]} exf4 {[%emt 0:02:31]} 17. exf5 {[%emt 0:05:03]} Bxf5 {[%emt 0:00:54]} 18. Bxf4 {[%emt 0:06:32]} Be5 {[%emt 0:03:01]} 19. Bxg5 {[%emt 0:05:12]} Qxg5 {[%emt 0:00:17]} 20. Nf3 {[%emt 0:00:23]} Qe3+ {[%emt 0:00:19]} 21. Kh1 {[%emt 0:00:51]} Bf4 {[%emt 0:00:15]} 0-1

[Event "23rd Hogeschool Zeeland Open 2019"]
[Site "Vlissingen"]
[Date "2019.08.04"]
[Round "1.2"]
[White "L'Ami, Erwin"]
[Black "Van Dijkhuizen, Robbert"]
[Result "1-0"]
[ECO "E15"]
[WhiteElo "2633"]
[BlackElo "1819"]
[Annotator "ChessBase"]
[PlyCount "55"]
[EventDate "2019.08.03"]
[EventType "swiss"]
[EventCountry "NED"]
[SourceTitle "playchess.com"]
[Source "ChessBase"]
[SourceQuality "1"]
[TimeControl "40/5400+30:1800+30"]

1. d4 {[%emt 0:00:00]} Nf6 {[%emt 0:00:00]} 2. c4 {[%emt 0:00:00]} e6 {[%emt 0:00:00]} 3. Nf3 {[%emt 0:00:01]} b6 {[%emt 0:01:06]} 4. g3 {[%emt 0:00:07]} Ba6 {[%emt 0:01:10]} 5. Nbd2 {[%emt 0:00:38]} Be7 {[%emt 0:04:35]} 6. e4 {[%emt 0:03:37]} d5 {[%emt 0:08:55]} 7. cxd5 {[%emt 0:06:45]} Bxf1 {[%emt 0:02:24]} 8. Nxf1 {[%emt 0:03:25]} exd5 {[%emt 0:05:02]} 9. e5 {[%emt 0:00:48]} Ne4 {[%emt 0:05:48]} 10. Ne3 {[%emt 0:01:06]} O-O {[%emt 0:11:55]} 11. O-O {[%emt 0:03:17]} Qd7 {[%emt 0:05:46]} 12. Ne1 {[%emt 0:04:25]} f5 {[%emt 0:08:05]} 13. N1g2 {[%emt 0:02:34]} Ng5 {[%emt 0:03:00]} 14. Nf4 {[%emt 0:02:56]} c6 {[%emt 0:01:42]} 15. h4 {[%emt 0:03:50]} Ne6 {[%emt 0:01:43]} 16. Nxe6 {[%emt 0:00:22]} Qxe6 {[%emt 0:00:11]} 17. Ng2 {[%emt 0:00:05]} Na6 {[%emt 0:04:34]} 18. Bg5 {[%emt 0:00:17]} Bxg5 {[%emt 0:07:19]} 19. hxg5 {[%emt 0:00:09]} Qe7 {[%emt 0:01:19]} 20. Qa4 {[%emt 0:05:05]} Qb7 {[%emt 0:03:30]} 21. Nf4 {[%emt 0:02:39]} c5 {[%emt 0:05:08]} 22. Rad1 {[%emt 0:03:22]} Nc7 {[%emt 0:03:54]} 23. Qb3 {[%emt 0:02:08]} c4 {[%emt 0:01:11]} 24. Qf3 {[%emt 0:00:14]} Rae8 {[%emt 0:01:37]} 25. Kg2 {[%emt 0:01:00]} g6 {[%emt 0:02:28]} 26. Rh1 {[%emt 0:00:46]} Re7 {[%emt 0:01:07]} 27. Rh6 {[%emt 0:00:46]} Qc6 {[%emt 0:01:41]} 28. Nh5 {[%emt 0:00:30]} 1-0

[Event "23rd Hogeschool Zeeland Open 2019"]
[Site "Vlissingen"]
[Date "2019.08.04"]
[Round "1.3"]
[White "Reichardt, Robin"]
[Black "Van Wely, Loek"]
[Result "0-1"]
[ECO "D93"]
[WhiteElo "1811"]
[BlackElo "2616"]
[Annotator "ChessBase"]
[PlyCount "40"]
[EventDate "2019.08.03"]
[EventType "swiss"]
[EventCountry "NED"]
[SourceTitle "playchess.com"]
[Source "ChessBase"]
[SourceQuality "1"]
[TimeControl "40/5400+30:1800+30"]

1. d4 {[%emt 0:00:00]} Nf6 {[%emt 0:00:00]} 2. c4 {[%emt 0:00:02]} g6 {[%emt 0:00:45]} 3. Nf3 {[%emt 0:00:46]} Bg7 {[%emt 0:00:19]} 4. Nc3 {[%emt 0:00:22]} d5 {[%emt 0:00:43]} 5. Bf4 {[%emt 0:02:58]} O-O {[%emt 0:00:44]} 6. e3 {[%emt 0:01:06]} c6 {[%emt 0:06:19]} 7. Bd3 {[%emt 0:02:36]} Bg4 {[%emt 0:01:03]} 8. h3 {[%emt 0:11:12]} Bxf3 {[%emt 0:00:49]} 9. Qxf3 {[%emt 0:00:17]} e6 {[%emt 0:00:11]} 10. O-O {[%emt 0:03:04]} Nbd7 {[%emt 0:00:04]} 11. Bh2 {[%emt 0:05:26]} Qe7 {[%emt 0:10:44]} 12. Rfd1 {[%emt 0:10:25]} Rad8 {[%emt 0:01:15]} 13. Rac1 {[%emt 0:03:44]} Rfe8 {[%emt 0:04:56]} 14. e4 {[%emt 0:11:33]} dxe4 {[%emt 0:11:12]} 15. Nxe4 {[%emt 0:02:34]} Nxe4 {[%emt 0:02:27]} 16. Bxe4 {[%emt 0:02:26]} Nb6 {[%emt 0:00:30]} 17. Qe3 {[%emt 0:03:54]} Rd7 {[%emt 0:10:00]} 18. Rd2 {[%emt 0:07:23]} Red8 {[%emt 0:07:06]} 19. c5 {[%emt 0:01:55]} Bxd4 {[%emt 0:03:27]} 20. Qa3 {[%emt 0:06:35]} Bxc5 {[%emt 0:05:59]} 0-1

[Event "23rd Hogeschool Zeeland Open 2019"]
[Site "Vlissingen"]
[Date "2019.08.04"]
[Round "1.4"]
[White "Ortiz Suarez, Isan Reynaldo"]
[Black "Van Der Straeten, Lieven"]
[Result "1-0"]
[ECO "E63"]
[WhiteElo "2551"]
[BlackElo "1809"]
[Annotator "ChessBase"]
[PlyCount "63"]
[EventDate "2019.08.03"]
[EventType "swiss"]
[EventCountry "NED"]
[SourceTitle "playchess.com"]
[Source "ChessBase"]
[SourceQuality "1"]
[TimeControl "40/5400+30:1800+30"]

1. c4 {[%emt 0:00:00]} Nf6 {[%emt 0:00:00]} 2. Nf3 {[%emt 0:00:00]} g6 {[%emt 0:00:00]} 3. g3 {[%emt 0:00:00]} Bg7 {[%emt 0:00:03]} 4. Bg2 {[%emt 0:00:11]} O-O {[%emt 0:00:37]} 5. d4 {[%emt 0:00:04]} d6 {[%emt 0:00:28]} 6. O-O {[%emt 0:00:07]} Nc6 {[%emt 0:00:36]} 7. Nc3 {[%emt 0:00:11]} a6 {[%emt 0:00:56]} 8. Bg5 {[%emt 0:03:28]} Bd7 {[%emt 0:02:38]} 9. Rc1 {[%emt 0:01:37]} Rb8 {[%emt 0:02:24]} 10. Nd5 {[%emt 0:07:48]} Ne4 {[%emt 0:08:56]} 11. Be3 {[%emt 0:02:12]} e6 {[%emt 0:15:04]} 12. Nf4 {[%emt 0:00:41]} Ne7 {[%emt 0:10:32]} 13. Qc2 {[%emt 0:06:00]} f5 {[%emt 0:06:17]} 14. Rfd1 {[%emt 0:02:41]} Qe8 {[%emt 0:04:53]} 15. Nd2 {[%emt 0:05:50]} Nxd2 {[%emt 0:04:40]} 16. Qxd2 {[%emt 0:00:21]} g5 {[%emt 0:05:36]} 17. Nd3 {[%emt 0:00:43]} h6 {[%emt 0:04:14]} 18. f4 {[%emt 0:04:17]} g4 {[%emt 0:02:46]} 19. d5 {[%emt 0:00:22]} Ng6 {[%emt 0:04:59]} 20. Ba7 {[%emt 0:04:42]} Ra8 {[%emt 0:02:42]} 21. Bf2 {[%emt 0:00:20]} e5 {[%emt 0:01:57]} 22. fxe5 {[%emt 0:00:53]} dxe5 {[%emt 0:03:48]} 23. Nc5 {[%emt 0:00:16]} f4 {[%emt 0:01:50]} 24. d6 {[%emt 0:00:37]} f3 {[%emt 0:05:18]} 25. exf3 {[%emt 0:00:24]} gxf3 {[%emt 0:00:20]} 26. dxc7 {[%emt 0:00:20]} Bc6 {[%emt 0:02:10]} 27. Bh3 {[%emt 0:00:21]} Nf4 {[%emt 0:03:01]} 28. gxf4 {[%emt 0:01:03]} Qg6+ {[%emt 0:01:37]} 29. Kh1 {[%emt 0:00:20]} Rxf4 {[%emt 0:01:07]} 30. Qd8+ {[%emt 0:00:12]} Kh7 {[%emt 0:02:54]} 31. Qxa8 {[%emt 0:00:35]} Qh5 {[%emt 0:01:26]} 32. c8=Q {[%emt 0:00:15]} 1-0

[Event "23rd Hogeschool Zeeland Open 2019"]
[Site "Vlissingen"]
[Date "2019.08.04"]
[Round "1.5"]
[White "Spears, Russell"]
[Black "Werle, Jan"]
[Result "0-1"]
[ECO "A26"]
[WhiteElo "1805"]
[BlackElo "2555"]
[Annotator "ChessBase"]
[PlyCount "64"]
[EventDate "2019.08.03"]
[EventType "swiss"]
[EventCountry "NED"]
[SourceTitle "playchess.com"]
[Source "ChessBase"]
[SourceQuality "1"]
[TimeControl "40/5400+30:1800+30"]

1. c4 {[%emt 0:00:48]} f5 {[%emt 0:00:46]} 2. g3 {[%emt 0:00:27]} Nf6 {[%emt 0:00:09]} 3. Bg2 {[%emt 0:00:38]} g6 {[%emt 0:00:24]} 4. Nc3 {[%emt 0:00:38]} Bg7 {[%emt 0:00:19]} 5. d3 {[%emt 0:00:51]} d6 {[%emt 0:01:01]} 6. e4 {[%emt 0:01:17]} Nc6 {[%emt 0:03:45]} 7. Nge2 {[%emt 0:00:22]} O-O {[%emt 0:00:46]} 8. O-O {[%emt 0:00:18]} e5 {[%emt 0:00:52]} 9. Nd5 {[%emt 0:01:52]} Be6 {[%emt 0:05:47]} 10. Bg5 {[%emt 0:02:45]} Qd7 {[%emt 0:01:50]} 11. Qd2 {[%emt 0:01:51]} Rf7 {[%emt 0:05:45]} 12. Rac1 {[%emt 0:07:18]} Raf8 {[%emt 0:09:48]} 13. exf5 {[%emt 0:10:05]} Bxf5 {[%emt 0:03:52]} 14. Nxf6+ {[%emt 0:06:22]} Bxf6 {[%emt 0:00:14]} 15. Bxf6 {[%emt 0:05:42]} Rxf6 {[%emt 0:00:35]} 16. d4 {[%emt 0:01:39]} Qg7 {[%emt 0:15:20]} 17. d5 {[%emt 0:07:03]} Nb8 {[%emt 0:06:48]} 18. b4 {[%emt 0:05:23]} b6 {[%emt 0:01:43]} 19. Nc3 {[%emt 0:06:11]} R6f7 {[%emt 0:02:28]} 20. Ne4 {[%emt 0:01:35]} Bxe4 {[%emt 0:00:12]} 21. Bxe4 {[%emt 0:00:16]} Nd7 {[%emt 0:00:01]} 22. Bg2 {[%emt 0:13:24]} g5 {[%emt 0:02:10]} 23. Qe2 {[%emt 0:04:19]} g4 {[%emt 0:02:39]} 24. h3 {[%emt 0:07:45]} Nf6 {[%emt 0:08:34]} 25. c5 {[%emt 0:00:39]} Kh8 {[%emt 0:02:40]} 26. cxd6 {[%emt 0:01:09]} cxd6 {[%emt 0:00:04]} 27. Rc6 {[%emt 0:00:43]} gxh3 {[%emt 0:01:43]} 28. Bxh3 {[%emt 0:00:48]} Nxd5 {[%emt 0:00:34]} 29. Qc4 {[%emt 0:04:03]} Ne3 {[%emt 0:05:05]} 30. fxe3 {[%emt 0:00:39]} Qxg3+ {[%emt 0:00:18]} 31. Bg2 {[%emt 0:00:12]} Rxf1+ {[%emt 0:00:07]} 32. Qxf1 {[%emt 0:00:24]} Qxe3+ {[%emt 0:00:33]} 0-1

[Event "23rd Hogeschool Zeeland Open 2019"]
[Site "Vlissingen"]
[Date "2019.08.04"]
[Round "1.6"]
[White "Ikonnikov, Vyacheslav"]
[Black "Klein, Jorik"]
[Result "1-0"]
[ECO "E93"]
[WhiteElo "2499"]
[BlackElo "1801"]
[Annotator "ChessBase"]
[PlyCount "61"]
[EventDate "2019.08.03"]
[EventType "swiss"]
[EventCountry "NED"]
[SourceTitle "playchess.com"]
[Source "ChessBase"]
[SourceQuality "1"]
[TimeControl "40/5400+30:1800+30"]

1. d4 {[%emt 0:00:00]} Nf6 {[%emt 0:00:00]} 2. Nf3 {[%emt 0:00:00]} g6 {[%emt 0:00:00]} 3. c4 {[%emt 0:00:03]} Bg7 {[%emt 0:00:05]} 4. Nc3 {[%emt 0:00:14]} d6 {[%emt 0:00:12]} 5. e4 {[%emt 0:00:11]} O-O {[%emt 0:00:10]} 6. Be2 {[%emt 0:00:09]} e5 {[%emt 0:00:11]} 7. d5 {[%emt 0:00:18]} Nbd7 {[%emt 0:04:15]} 8. Be3 {[%emt 0:02:37]} a5 {[%emt 0:08:45]} 9. Nd2 {[%emt 0:01:40]} Ne8 {[%emt 0:10:44]} 10. g4 {[%emt 0:02:24]} Nc5 {[%emt 0:07:49]} 11. h4 {[%emt 0:01:25]} f5 {[%emt 0:07:38]} 12. gxf5 {[%emt 0:07:56]} gxf5 {[%emt 0:00:17]} 13. h5 {[%emt 0:00:40]} h6 {[%emt 0:15:09]} 14. Qc2 {[%emt 0:08:59]} f4 {[%emt 0:08:51]} 15. Bxc5 {[%emt 0:00:19]} dxc5 {[%emt 0:00:04]} 16. O-O-O {[%emt 0:00:06]} Bd7 {[%emt 0:05:26]} 17. Rdg1 {[%emt 0:00:19]} Kh7 {[%emt 0:02:25]} 18. Bg4 {[%emt 0:01:18]} Bxg4 {[%emt 0:00:17]} 19. Rxg4 {[%emt 0:00:05]} Nf6 {[%emt 0:03:36]} 20. Rg2 {[%emt 0:01:23]} Qe8 {[%emt 0:00:38]} 21. Nf3 {[%emt 0:00:39]} Rd8 {[%emt 0:02:39]} 22. Nh4 {[%emt 0:05:21]} Nxh5 {[%emt 0:01:14]} 23. Nf5 {[%emt 0:01:17]} Rd7 {[%emt 0:00:43]} 24. Qd1 {[%emt 0:04:47]} Rxf5 {[%emt 0:00:51]} 25. exf5 {[%emt 0:00:09]} Nf6 {[%emt 0:00:03]} 26. f3 {[%emt 0:02:43]} c6 {[%emt 0:01:01]} 27. Ne4 {[%emt 0:01:28]} Nxe4 {[%emt 0:00:55]} 28. fxe4 {[%emt 0:00:06]} cxd5 {[%emt 0:00:06]} 29. cxd5 {[%emt 0:00:10]} Qf8 {[%emt 0:01:10]} 30. Qh5 {[%emt 0:00:49]} Rd6 {[%emt 0:00:36]} 31. Rhg1 {[%emt 0:01:23]} 1-0

[Event "23rd Hogeschool Zeeland Open 2019"]
[Site "Vlissingen"]
[Date "2019.08.04"]
[Round "1.7"]
[White "Enserink, Henk"]
[Black "Harika, Dronavalli"]
[Result "0-1"]
[ECO "C01"]
[WhiteElo "1803"]
[BlackElo "2492"]
[Annotator "ChessBase"]
[PlyCount "40"]
[EventDate "2019.08.03"]
[EventType "swiss"]
[EventCountry "NED"]
[SourceTitle "playchess.com"]
[Source "ChessBase"]
[SourceQuality "1"]
[TimeControl "40/5400+30:1800+30"]

1. e4 {[%emt 0:00:00]} e6 {[%emt 0:00:13]} 2. Nf3 {[%emt 0:00:00]} d5 {[%emt 0:00:43]} 3. exd5 {[%emt 0:00:00]} exd5 {[%emt 0:00:10]} 4. d4 {[%emt 0:00:06]} Bd6 {[%emt 0:00:34]} 5. c4 {[%emt 0:00:28]} Nf6 {[%emt 0:01:11]} 6. c5 {[%emt 0:02:15]} Be7 {[%emt 0:00:20]} 7. Be2 {[%emt 0:01:38]} O-O {[%emt 0:00:19]} 8. O-O {[%emt 0:00:51]} b6 {[%emt 0:00:15]} 9. b4 {[%emt 0:01:13]} a5 {[%emt 0:01:08]} 10. Bd2 {[%emt 0:01:20]} axb4 {[%emt 0:01:12]} 11. Bxb4 {[%emt 0:02:42]} Ne4 {[%emt 0:03:14]} 12. Qc2 {[%emt 0:11:40]} Nc6 {[%emt 0:11:43]} 13. Ba3 {[%emt 0:00:25]} bxc5 {[%emt 0:02:25]} 14. dxc5 {[%emt 0:06:27]} Bf5 {[%emt 0:04:44]} 15. Bd3 {[%emt 0:01:11]} Bf6 {[%emt 0:00:30]} 16. Bb2 {[%emt 0:00:25]} Nb4 {[%emt 0:00:25]} 17. Bxf6 {[%emt 0:09:17]} Qxf6 {[%emt 0:00:17]} 18. Qb3 {[%emt 0:01:18]} Nxd3 {[%emt 0:00:29]} 19. Qxd3 {[%emt 0:00:36]} Qxa1 {[%emt 0:00:33]} 20. Nbd2 {[%emt 0:00:35]} Qxa2 {[%emt 0:00:50]} 0-1

[Event "23rd Hogeschool Zeeland Open 2019"]
[Site "Vlissingen"]
[Date "2019.08.04"]
[Round "1.8"]
[White "Hausrath, Daniel"]
[Black "Hahnen, Elke"]
[Result "1-0"]
[ECO "A11"]
[WhiteElo "2468"]
[BlackElo "1803"]
[Annotator "ChessBase"]
[PlyCount "47"]
[EventDate "2019.08.03"]
[EventType "swiss"]
[EventCountry "NED"]
[SourceTitle "playchess.com"]
[Source "ChessBase"]
[SourceQuality "1"]
[TimeControl "40/5400+30:1800+30"]

1. Nf3 {[%emt 0:00:00]} d5 {[%emt 0:00:24]} 2. g3 {[%emt 0:00:00]} g6 {[%emt 0:01:07]} 3. Bg2 {[%emt 0:00:00]} Bg7 {[%emt 0:01:16]} 4. O-O {[%emt 0:01:06]} Nf6 {[%emt 0:00:07]} 5. b3 {[%emt 0:01:10]} O-O {[%emt 0:00:43]} 6. Bb2 {[%emt 0:00:15]} b6 {[%emt 0:04:59]} 7. c4 {[%emt 0:01:23]} c6 {[%emt 0:00:32]} 8. d3 {[%emt 0:01:10]} Bg4 {[%emt 0:07:04]} 9. Nbd2 {[%emt 0:01:04]} Nbd7 {[%emt 0:04:33]} 10. Nd4 {[%emt 0:05:56]} Rc8 {[%emt 0:11:01]} 11. h3 {[%emt 0:01:35]} Be6 {[%emt 0:03:38]} 12. N2f3 {[%emt 0:01:46]} Nc5 {[%emt 0:05:07]} 13. b4 {[%emt 0:01:04]} Ncd7 {[%emt 0:01:15]} 14. Nxe6 {[%emt 0:00:29]} fxe6 {[%emt 0:00:02]} 15. Ng5 {[%emt 0:00:22]} Rf7 {[%emt 0:01:54]} 16. Nxe6 {[%emt 0:01:02]} Qe8 {[%emt 0:00:09]} 17. cxd5 {[%emt 0:00:05]} cxd5 {[%emt 0:01:30]} 18. Qb3 {[%emt 0:00:21]} Bh6 {[%emt 0:01:50]} 19. Bxd5 {[%emt 0:04:43]} Nxd5 {[%emt 0:00:02]} 20. Qxd5 {[%emt 0:00:10]} Rc2 {[%emt 0:00:30]} 21. Bc1 {[%emt 0:02:34]} Bxc1 {[%emt 0:06:04]} 22. Raxc1 {[%emt 0:00:30]} Rxe2 {[%emt 0:02:31]} 23. Ng5 {[%emt 0:01:30]} e6 {[%emt 0:00:09]} 24. Qb7 {[%emt 0:00:18]} 1-0

[Event "23rd Hogeschool Zeeland Open 2019"]
[Site "Vlissingen"]
[Date "2019.08.04"]
[Round "1.9"]
[White "Van Gemert, Jean-Pierre"]
[Black "Romanishin, Oleg M"]
[Result "0-1"]
[ECO "A45"]
[WhiteElo "1795"]
[BlackElo "2443"]
[Annotator "NA"]
[PlyCount "38"]
[EventDate "2019.08.03"]
[EventType "swiss"]
[EventCountry "NED"]
[SourceTitle "playchess.com"]
[Source "ChessBase"]
[SourceQuality "1"]
[TimeControl "40/5400+30:1800+30"]

1. d4 {[%emt 0:01:08]} Nf6 {[%emt 0:00:00]} 2. Bf4 {[%emt 0:00:17]} c5 {[%emt 0:08:11]} 3. e3 {[%emt 0:03:03]} g6 {[%emt 0:02:25]} 4. c3 {[%emt 0:00:11]} Qb6 {[%emt 0:02:03]} 5. Qc2 {[%emt 0:02:19]} Bg7 {[%emt 0:01:03]} 6. Nd2 {[%emt 0:00:35]} O-O {[%emt 0:04:51]} 7. Nc4 {[%emt 0:05:19]} Qe6 {[%emt 0:09:14]} 8. Nf3 {[%emt 0:11:43]} d5 {[%emt 0:06:37]} 9. Ng5 {[%emt 0:12:59]} Qc6 {[%emt 0:01:03]} 10. Ne5 {[%emt 0:01:29]} Qb6 {[%emt 0:00:42]} 11. dxc5 {[%emt 0:01:33]} Qxc5 {[%emt 0:06:11]} 12. b4 {[%emt 0:07:05]} Qb6 {[%emt 0:01:06]} 13. Bd3 {[%emt 0:05:13]} Nh5 {[%emt 0:14:37]} 14. Bg3 {[%emt 0:10:18]} Nd7 {[%emt 0:10:45]} 15. Nxd7 {[%emt 0:05:27]} Bxd7 {[%emt 0:00:07]} 16. Qb3 {[%emt 0:01:12]} Qf6 {[%emt 0:01:33]} 17. Qxd5 {[%emt 0:03:56]} Qxc3+ {[%emt 0:00:22]} 18. Ke2 {[%emt 0:00:08]} Qb2+ {[%emt 0:00:41]} 19. Kf3 {[%emt 0:00:28]} Bc6 {[%emt 0:00:17]} 0-1

[Event "23rd Hogeschool Zeeland Open 2019"]
[Site "Vlissingen"]
[Date "2019.08.04"]
[Round "1.10"]
[White "Leenhouts, Koen"]
[Black "De Jonge, Edwin"]
[Result "1-0"]
[ECO "B12"]
[WhiteElo "2426"]
[BlackElo "1788"]
[Annotator "NA"]
[PlyCount "57"]
[EventDate "2019.08.03"]
[EventType "swiss"]
[EventCountry "NED"]
[SourceTitle "playchess.com"]
[Source "ChessBase"]
[SourceQuality "1"]
[TimeControl "40/5400+30:1800+30"]

1. e4 {[%emt 0:00:00]} c6 {[%emt 0:00:00]} 2. d4 {[%emt 0:00:00]} d5 {[%emt 0:00:00]} 3. e5 {[%emt 0:00:17]} c5 {[%emt 0:00:22]} 4. dxc5 {[%emt 0:00:30]} Nc6 {[%emt 0:03:56]} 5. Bf4 {[%emt 0:00:39]} Bf5 {[%emt 0:01:02]} 6. c3 {[%emt 0:05:18]} a5 {[%emt 0:01:37]} 7. Bb5 {[%emt 0:01:46]} e6 {[%emt 0:00:47]} 8. Be3 {[%emt 0:03:52]} Nge7 {[%emt 0:08:26]} 9. Ne2 {[%emt 0:02:39]} Ng6 {[%emt 0:08:09]} 10. f4 {[%emt 0:04:27]} Nh4 {[%emt 0:07:54]} 11. O-O {[%emt 0:00:42]} Be4 {[%emt 0:06:42]} 12. Rf2 {[%emt 0:02:18]} Nf5 {[%emt 0:04:34]} 13. Bd4 {[%emt 0:00:44]} h5 {[%emt 0:12:49]} 14. Nd2 {[%emt 0:00:26]} h4 {[%emt 0:01:44]} 15. Nxe4 {[%emt 0:05:40]} dxe4 {[%emt 0:00:02]} 16. Qc2 {[%emt 0:00:26]} Qd5 {[%emt 0:02:19]} 17. Rd1 {[%emt 0:18:24]} Rd8 {[%emt 0:03:29]} 18. Ba4 {[%emt 0:08:33]} e3 {[%emt 0:04:45]} 19. Rf3 {[%emt 0:00:54]} h3 {[%emt 0:02:05]} 20. Bb3 {[%emt 0:00:10]} Qd7 {[%emt 0:00:11]} 21. g4 {[%emt 0:01:21]} a4 {[%emt 0:07:45]} 22. Bxa4 {[%emt 0:08:29]} Qd5 {[%emt 0:00:17]} 23. Rdf1 {[%emt 0:00:11]} Nh4 {[%emt 0:00:29]} 24. Rg3 {[%emt 0:00:22]} Ng2 {[%emt 0:02:36]} 25. Bb3 {[%emt 0:00:27]} Qd7 {[%emt 0:00:20]} 26. Qe4 {[%emt 0:01:09]} Be7 {[%emt 0:02:53]} 27. f5 {[%emt 0:00:23]} Rh6 {[%emt 0:05:19]} 28. fxe6 {[%emt 0:00:47]} fxe6 {[%emt 0:00:13]} 29. Rxh3 {[%emt 0:02:01]} 1-0

[Event "23rd Hogeschool Zeeland Open 2019"]
[Site "Vlissingen"]
[Date "2019.08.04"]
[Round "1.11"]
[White "De Wilde, Steven"]
[Black "Grochal, Joey"]
[Result "0-1"]
[ECO "B30"]
[WhiteElo "1771"]
[BlackElo "2313"]
[Annotator "NA"]
[PlyCount "102"]
[EventDate "2019.08.03"]
[EventType "swiss"]
[EventCountry "NED"]
[SourceTitle "playchess.com"]
[Source "ChessBase"]
[SourceQuality "1"]
[TimeControl "40/5400+30:1800+30"]

1. e4 {[%emt 0:04:23]} c5 {[%emt 0:00:02]} 2. Nf3 {[%emt 0:00:09]} e6 {[%emt 0:00:06]} 3. d3 {[%emt 0:00:08]} Nc6 {[%emt 0:00:18]} 4. Nbd2 {[%emt 0:00:17]} Be7 {[%emt 0:02:31]} 5. g3 {[%emt 0:00:24]} d6 {[%emt 0:01:04]} 6. Bg2 {[%emt 0:00:22]} Nf6 {[%emt 0:00:10]} 7. O-O {[%emt 0:00:24]} O-O {[%emt 0:00:37]} 8. a4 {[%emt 0:01:42]} Qc7 {[%emt 0:06:17]} 9. Re1 {[%emt 0:07:39]} Rd8 {[%emt 0:01:15]} 10. c3 {[%emt 0:07:05]} Bf8 {[%emt 0:03:44]} 11. Qe2 {[%emt 0:02:07]} e5 {[%emt 0:03:03]} 12. Nc4 {[%emt 0:01:51]} h6 {[%emt 0:02:27]} 13. Ne3 {[%emt 0:03:30]} Na5 {[%emt 0:03:59]} 14. Nd2 {[%emt 0:07:31]} g6 {[%emt 0:10:19]} 15. f4 {[%emt 0:06:41]} exf4 {[%emt 0:11:48]} 16. gxf4 {[%emt 0:00:09]} Nc6 {[%emt 0:00:54]} 17. Rf1 {[%emt 0:10:42]} Bg7 {[%emt 0:01:00]} 18. Ndc4 {[%emt 0:06:28]} Kh7 {[%emt 0:06:36]} 19. Bd2 {[%emt 0:04:58]} Be6 {[%emt 0:05:53]} 20. f5 {[%emt 0:02:58]} Bxc4 {[%emt 0:00:14]} 21. fxg6+ {[%emt 0:01:47]} fxg6 {[%emt 0:00:08]} 22. Nxc4 {[%emt 0:00:15]} Ne5 {[%emt 0:01:27]} 23. Ne3 {[%emt 0:02:09]} Rf8 {[%emt 0:01:50]} 24. Rf2 {[%emt 0:04:30]} Qd7 {[%emt 0:02:12]} 25. h3 {[%emt 0:02:21]} Nh5 {[%emt 0:02:46]} 26. Nf5 {[%emt 0:03:58]} Rf7 {[%emt 0:06:11]} 27. Raf1 {[%emt 0:02:07]} Raf8 {[%emt 0:01:57]} 28. Nxg7 {[%emt 0:02:35]} Ng3 {[%emt 0:04:55]} 29. Qe3 {[%emt 0:01:29]} Nxf1 {[%emt 0:00:06]} 30. Qxh6+ {[%emt 0:00:20]} Kg8 {[%emt 0:00:01]} 31. Rxf1 {[%emt 0:02:07]} Rxf1+ {[%emt 0:01:02]} 32. Bxf1 {[%emt 0:00:09]} Nf3+ {[%emt 0:01:07]} 33. Kg2 {[%emt 0:02:48]} Nxd2 {[%emt 0:02:06]} 34. Qxd2 {[%emt 0:00:36]} Qxg7 {[%emt 0:00:42]} 35. d4 {[%emt 0:02:51]} Qf7 {[%emt 0:01:10]} 36. Qe2 {[%emt 0:01:11]} cxd4 {[%emt 0:00:22]} 37. cxd4 {[%emt 0:00:19]} Qf4 {[%emt 0:00:28]} 38. e5 {[%emt 0:02:16]} dxe5 {[%emt 0:02:01]} 39. dxe5 {[%emt 0:00:42]} Qg5+ {[%emt 0:04:09]} 40. Kh1 {[%emt 0:01:16]} Qf5 {[%emt 0:01:04]} 41. Bg2 {[%emt 0:33:41]} Rc8 {[%emt 0:31:27]} 42. Qd2 {[%emt 0:00:00]} Kh7 {[%emt 0:00:00]} 43. Qd4 {[%emt 0:00:00]} b6 {[%emt 0:00:00]} 44. Qh4+ {[%emt 0:00:00]} Kg7 {[%emt 0:00:00]} 45. Qe7+ {[%emt 0:00:00]} Qf7 {[%emt 0:00:00]} 46. Qxf7+ {[%emt 0:00:00]} Kxf7 {[%emt 0:00:00]} 47. Bd5+ {[%emt 0:00:00]} Ke7 {[%emt 0:00:00]} 48. Bb3 {[%emt 0:00:00]} Rc1+ {[%emt 0:00:00]} 49. Kg2 {[%emt 0:00:00]} Rb1 {[%emt 0:00:00]} 50. Bd5 {[%emt 0:00:00]} Rxb2+ {[%emt 0:00:00]} 51. Kf3 {[%emt 0:00:00]} Rb4 {[%emt 0:00:00]} 0-1